bitfinex/quotes_SOLUSD_20251216
["timestamp","ask_amount","ask_price","bid_price","bid_amount"]
[1765909090044,3.84372343,127.54,127.52,0.72]
[1765909090738,11.68477453,127.54,127.52,0.72]
[1765909091240,31.28646811,127.54,127.51,0.2]
[1765909091443,4.53372343,127.53,127.51,0.2]
[1765909091650,4.53409912,127.53,127.51,0.2]
[1765909091844,4.53409912,127.52,127.51,0.2]
[1765909092517,12.37600627,127.52,127.51,0.2]
[1765909094412,11.68600627,127.52,127.51,0.2]
[1765909094814,12.37600627,127.52,127.51,0.2]
[1765909096121,20.97600627,127.52,127.51,0.2]
[1765909096930,0.69,127.5,127.49,0.2]
[1765909097250,27.4158712,127.5,127.49,0.2]
[1765909099437,27.4158712,127.5,127.48,0.2]
[1765909099438,0.69,127.49,127.48,0.2]
[1765909099626,4.53409912,127.49,127.48,0.2]
[1765909100865,3.84409912,127.49,127.48,0.2]
[1765909101329,7.84375245,127.49,127.48,0.2]
[1765909101533,7.84375245,127.49,127.48,0.92]
[1765909101923,7.84375245,127.49,127.48,0.2]
[1765909104666,11.68785157,127.49,127.48,0.2]
[1765909107334,12.37785157,127.49,127.48,0.2]
[1765909107538,19.59585745,127.49,127.48,0.2]
[1765909109029,17.13375245,127.49,127.48,0.2]
[1765909109354,19.59585745,127.49,127.48,0.2]
[1765909110941,8.5362142,127.45,127.43,0.1]
[1765909111127,10.3083192,127.45,127.43,0.82]
[1765909111636,10.3083192,127.45,127.43,0.1]
[1765909111637,10.9983192,127.45,127.43,0.1]
[1765909111849,2.462105,127.44,127.43,0.1]
[1765909112045,27.4617497,127.45,127.43,0.1]
[1765909112358,27.4617497,127.45,127.43,0.82]
[1765909112529,29.9238547,127.45,127.43,0.82]
[1765909113028,7.8462142,127.45,127.43,0.82]
[1765909113224,10.3083192,127.45,127.43,0.82]
[1765909113626,7.8462142,127.45,127.43,0.82]
[1765909113833,7.8458369,127.46,127.43,0.82]
[1765909114457,10.3079419,127.46,127.43,0.82]
[1765909115438,7.8458369,127.46,127.43,0.82]
[1765909117533,30.63193844,127.46,127.43,0.82]
[1765909117944,27.45983344,127.46,127.43,0.82]
[1765909119633,7.8458369,127.46,127.44,2.462105]
[1765909119840,7.8458369,127.46,127.45,0.66]
[1765909121564,7.84498313,127.47,127.45,0.66]
[1765909122770,22.07112129,127.5,127.47,0.66]
[1765909122947,11.062105,127.51,127.48,0.66]
[1765909123149,7.84343457,127.5,127.48,0.66]
[1765909123763,27.44919008,127.51,127.48,0.66]
[1765909125273,7.84219957,127.52,127.49,0.66]
[1765909125448,7.84219957,127.52,127.5,0.66]
[1765909125791,23.70008549,127.55,127.51,0.66]
[1765909125969,7.84067743,127.54,127.53,0.66]
[1765909127078,7.84067743,127.54,127.51,0.66]
[1765909127576,7.84067743,127.54,127.52,0.66]
[1765909127954,27.44103671,127.55,127.52,0.66]
[1765909128276,7.8394481,127.56,127.53,0.66]
[1765909128478,7.8394481,127.56,127.54,0.66]
[1765909133460,27.43806835,127.56,127.52,0.66]
[1765909133683,27.43806835,127.56,127.5,8.80994492]
[1765909133684,27.43806835,127.56,127.51,0.66]
[1765909133859,2.462105,127.54,127.51,0.66]
[1765909134474,3.172105,127.55,127.51,0.66]
[1765909134983,10.30278243,127.54,127.51,0.66]
[1765909135165,0.71,127.53,127.5,0.66]
[1765909135370,27.44237101,127.54,127.5,0.66]
[1765909135571,29.90447601,127.54,127.5,0.66]
[1765909135771,30.61447601,127.54,127.5,0.66]
[1765909136359,7.84067743,127.54,127.52,0.66]
[1765909136864,8.55067743,127.54,127.51,0.66]
[1765909137058,7.84067743,127.54,127.51,0.66]
[1765909137466,10.30278243,127.54,127.51,0.66]
[1765909138087,7.84067743,127.54,127.51,0.66]
[1765909138264,7.84067743,127.54,127.51,7.84247371]
[1765909138469,18.27798305,127.55,127.52,0.66]
[1765909138682,20.74008805,127.55,127.52,0.66]
[1765909140681,18.98798305,127.55,127.51,0.66]
[1765909140860,2.462105,127.52,127.49,0.66]
[1765909141265,2.462105,127.53,127.5,0.66]
[1765909141486,7.84129224,127.53,127.51,0.66]
[1765909144591,10.98278243,127.54,127.51,0.66]
[1765909146291,7.84067743,127.54,127.52,0.67]
[1765909146989,32.49993476,127.55,127.52,7.84170969]
[1765909146990,18.27797331,127.55,127.52,7.84170969]
[1765909147291,18.27797331,127.55,127.53,0.67]
[1765909147868,20.74007831,127.55,127.53,0.67]
[1765909148177,18.27797331,127.55,127.52,0.67]
[1765909149882,41.02023511,127.55,127.52,0.67]
[1765909151999,40.34023511,127.55,127.52,0.67]
[1765909152202,41.02023511,127.55,127.52,0.67]
[1765909153384,41.02023511,127.55,127.53,0.67]
[1765909153385,7.84030035,127.55,127.53,0.67]
[1765909153977,30.58256215,127.55,127.52,0.67]
[1765909154372,0.68,127.54,127.51,0.67]
[1765909154802,29.90256215,127.55,127.51,0.67]
[1765909154988,30.58256215,127.55,127.51,0.67]
[1765909155498,0.68,127.52,127.49,0.67]
[1765909155887,3.142105,127.53,127.49,0.67]
[1765909156499,10.43767296,127.54,127.51,0.67]
[1765909157608,7.84129224,127.53,127.51,0.67]
[1765909159391,8.52129224,127.53,127.49,3.132105]
[1765909159817,7.84129224,127.53,127.5,0.67]
[1765909161303,7.84129224,127.53,127.51,0.67]
[1765909163024,18.27871157,127.54,127.52,0.67]
[1765909163208,7.84103861,127.54,127.52,0.67]
[1765909164938,7.8394481,127.56,127.54,0.67]
[1765909165432,3.13945564,127.55,127.51,0.67]
[1765909165924,28.11806835,127.56,127.52,0.67]
[1765909166223,30.57752399,127.56,127.52,0.67]
[1765909167525,31.960093,127.56,127.52,0.67]
[1765909169709,31.960093,127.56,127.52,7.84161378]
[1765909169934,28.11806835,127.56,127.53,0.67]
[1765909173727,27.43806835,127.56,127.53,0.67]
[1765909174239,7.8394481,127.56,127.53,7.84105547]
[1765909174533,7.8394481,127.56,127.54,0.72]
[1765909175031,8.5594481,127.56,127.54,0.72]
[1765909175410,8.5594481,127.56,127.53,0.72]
[1765909180140,8.5594481,127.56,127.53,4.56202465]
[1765909181532,8.5594481,127.56,127.53,0.72]
[1765909183028,7.83908113,127.57,127.55,0.72]
[1765909185617,8.56048109,127.55,127.52,4.56202465]
[1765909185824,8.56048109,127.55,127.52,0.72]
[1765909186347,7.84048109,127.55,127.52,0.72]
[1765909186719,7.84048109,127.55,127.52,4.56202465]
[1765909187114,7.84048109,127.55,127.52,0.72]
[1765909188242,7.84048109,127.55,127.53,0.72]
[1765909189830,0.72,127.55,127.52,0.72]
[1765909190149,0.72,127.54,127.51,8.6]
[1765909190335,0.72,127.54,127.51,9.32]
[1765909190748,4.56202465,127.52,127.49,0.72]
[1765909191047,0.72,127.5,127.46,0.72]
[1765909191221,0.72,127.49,127.46,13.16202465]
[1765909192146,8.56436774,127.48,127.46,8.6]
[1765909192458,8.56436774,127.48,127.44,13.16202465]
[1765909193036,8.56436774,127.48,127.45,0.72]
[1765909193235,0.72,127.47,127.44,9.32]
[1765909193434,31.29731174,127.48,127.44,9.32]
[1765909193435,32.01731174,127.48,127.45,0.72]
[1765909194149,27.45528709,127.48,127.45,0.72]
[1765909194334,8.56436774,127.48,127.45,0.72]
[1765909195549,0.72,127.47,127.44,8.6]
[1765909195737,0.72,127.46,127.43,0.1]
[1765909195932,4.56202465,127.46,127.43,0.1]
[1765909196141,0.72,127.44,127.43,0.1]
[1765909196743,14.27969761,127.45,127.43,0.1]
[1765909196943,11.15767296,127.45,127.43,0.1]
[1765909197858,19.00430188,127.45,127.43,0.1]
[1765909198858,0.72,127.44,127.43,0.1]
[1765909199362,18.28430188,127.45,127.43,0.1]
[1765909199559,19.00430188,127.45,127.43,0.1]
[1765909199970,7.84662892,127.45,127.43,0.82]
[1765909200748,7.84436774,127.48,127.45,0.72]
[1765909201143,0.72,127.47,127.44,9.32]
[1765909201351,32.01731174,127.48,127.44,13.16202465]
[1765909201649,3.84202465,127.47,127.44,8.6]
[1765909201836,7.84559861,127.46,127.44,8.6]
[1765909202036,7.84559861,127.46,127.44,9.32]
[1765909202862,7.84559861,127.46,127.44,13.16202465]
[1765909203049,7.84559861,127.46,127.44,12.44202465]
[1765909203253,7.84559861,127.46,127.44,13.16202465]
[1765909203866,7.84519311,127.47,127.44,13.16202465]
[1765909206171,7.84519311,127.47,127.45,0.7]
[1765909206363,7.84519311,127.47,127.44,12.44202465]
[1765909206364,7.84519311,127.47,127.44,13.14202465]
[1765909206541,8.51519311,127.47,127.44,13.14202465]
[1765909207169,10.43767296,127.49,127.46,0.7]
[1765909207170,18.28165337,127.49,127.46,0.7]
[1765909207365,18.95165337,127.49,127.46,4.54202465]
[1765909208271,7.84398041,127.49,127.47,4.54202465]
[1765909208469,7.84350834,127.5,127.48,4.54202465]
[1765909209471,7.84252215,127.51,127.48,0.7]
[1765909209681,8.51252215,127.51,127.48,0.7]
[1765909209994,0.67,127.5,127.47,8.6]
[1765909211050,0.67,127.5,127.47,9.3]
[1765909211771,7.84362456,127.5,127.48,0.7]
[1765909212273,7.84362456,127.5,127.47,20.28697195]
[1765909212471,7.84362456,127.5,127.48,0.7]
[1765909214478,7.84362456,127.5,127.47,20.28697195]
[1765909214479,8.51362456,127.5,127.47,13.14202465]
[1765909214864,8.51362456,127.5,127.47,9.3]
[1765909215177,8.51362456,127.5,127.47,13.14202465]
[1765909217393,8.51362456,127.5,127.47,9.3]
[1765909218002,8.51362456,127.5,127.47,8.6]
[1765909218003,27.45146769,127.5,127.47,8.6]
[1765909218158,27.45146769,127.5,127.43,19.34761788]
[1765909218159,0.67,127.47,127.43,21.08914426]
[1765909218359,0.67,127.47,127.43,13.24202465]
[1765909218659,0.67,127.46,127.43,8.7]
[1765909218859,0.67,127.46,127.43,9.4]
[1765909219167,0.67,127.46,127.43,8.7]
[1765909219372,8.5162142,127.45,127.43,8.7]
[1765909223190,0.67,127.44,127.43,0.1]
[1765909223368,4.51202465,127.44,127.43,0.1]
[1765909225688,0.67,127.42,127.41,0.1]
[1765909225893,23.54969761,127.42,127.41,0.1]
[1765909226372,0.67,127.38,127.36,0.1]
[1765909226581,4.51202465,127.38,127.36,0.1]
[1765909226995,4.51202465,127.37,127.36,0.1]
[1765909227194,3.84202465,127.37,127.36,0.1]
[1765909227371,4.51202465,127.38,127.36,0.1]
[1765909227690,7.85114234,127.37,127.36,0.1]
[1765909227860,7.85064535,127.38,127.36,0.8]
[1765909228063,18.28783582,127.39,127.36,0.8]
[1765909228267,7.84929356,127.4,127.36,3.94202465]
[1765909228572,7.84929356,127.4,127.37,0.7]
[1765909230892,7.84929356,127.4,127.38,0.7]
[1765909231292,8.51929356,127.4,127.37,0.7]
[1765909232077,7.84929356,127.4,127.37,0.7]
[1765909232394,21.42140273,127.41,127.37,7.85105187]
[1765909232596,20.75140273,127.41,127.38,0.7]
[1765909232910,7.84824406,127.42,127.39,0.7]
[1765909233272,18.28537245,127.43,127.4,0.7]
[1765909233692,7.84769949,127.43,127.4,0.7]
[1765909235696,18.2847408,127.44,127.41,0.7]
[1765909235900,7.84706784,127.44,127.41,0.7]
[1765909236072,7.84647429,127.45,127.42,0.7]
[1765909236403,10.97938308,127.46,127.42,0.7]
[1765909236588,7.84585744,127.46,127.43,0.7]
[1765909236792,7.84509592,127.47,127.44,0.7]
[1765909239377,8.51509592,127.47,127.44,0.7]
[1765909239815,0.67,127.46,127.43,0.7]
[1765909240098,0.67,127.45,127.41,3.16352564]
[1765909240301,0.67,127.45,127.42,0.7]
[1765909242706,8.51679956,127.45,127.42,0.7]
[1765909243596,7.84679956,127.45,127.42,0.7]
[1765909243988,7.84679956,127.45,127.43,0.7]
[1765909244382,7.84589317,127.46,127.43,0.7]
[1765909244607,7.84589317,127.46,127.44,0.7]
[1765909244802,7.84521044,127.47,127.45,0.7]
[1765909245989,30.58976062,127.48,127.45,0.7]
[1765909247201,27.45623498,127.48,127.45,0.7]
[1765909247411,28.12623498,127.48,127.45,0.7]
[1765909247709,27.45623498,127.48,127.45,0.7]
[1765909248519,28.12623498,127.48,127.45,0.7]
[1765909249310,0.67,127.47,127.41,9.3]
[1765909249514,3.13352564,127.46,127.42,0.7]
[1765909250112,3.13352564,127.46,127.43,0.7]
[1765909250313,0.67,127.46,127.43,0.7]
[1765909250617,8.51616871,127.46,127.43,0.7]
[1765909251216,0.67,127.45,127.41,18.91199622]
[1765909251403,0.67,127.45,127.42,0.7]
[1765909252111,7.84682988,127.44,127.42,0.7]
[1765909253006,7.84650304,127.45,127.42,2.46352564]
[1765909253616,8.51650304,127.45,127.42,3.16352564]
[1765909254718,8.51650304,127.45,127.42,0.7]
[1765909255211,7.84650304,127.45,127.42,0.7]
[1765909256613,7.84650304,127.45,127.43,0.7]
[1765909258398,0.67,127.44,127.41,11.76352564]
[1765909259402,28.13203854,127.45,127.41,11.76352564]
[1765909260305,28.13203854,127.45,127.42,0.7]
[1765909261199,27.46203854,127.45,127.41,11.06352564]
[1765909261417,7.84650304,127.45,127.43,0.7]
[1765909261715,18.2835969,127.46,127.43,0.7]
[1765909261916,18.2835969,127.46,127.44,0.7]
[1765909262114,37.89759344,127.46,127.42,2.46352564]
[1765909262315,38.56759344,127.46,127.43,0.7]
[1765909263417,18.2835969,127.46,127.43,0.7]
[1765909263730,18.9535969,127.46,127.43,0.7]
[1765909263913,18.2835969,127.46,127.43,0.7]
[1765909264117,18.9535969,127.46,127.43,0.7]
[1765909265540,0.67,127.45,127.42,0.67]
[1765909265711,0.67,127.44,127.41,9.27]
[1765909266334,3.13352564,127.45,127.41,8.6]
[1765909266539,0.67,127.44,127.41,9.27]
[1765909267237,3.13352564,127.44,127.41,8.6]
[1765909267558,7.84744565,127.43,127.41,8.6]
[1765909267719,0.67,127.42,127.41,8.6]
[1765909268329,8.51744565,127.43,127.41,8.6]
[1765909269035,29.92958543,127.43,127.41,8.6]
[1765909269337,29.92958543,127.43,127.39,0.67]
[1765909269338,0.67,127.42,127.39,0.67]
[1765909269507,8.51860255,127.42,127.39,0.67]
[1765909270712,7.84860255,127.42,127.39,0.67]
[1765909271114,0.67,127.41,127.38,9.27]
[1765909271526,30.60228201,127.42,127.38,8.6]
[1765909271720,30.60228201,127.42,127.38,9.27]
[1765909271926,0.67,127.4,127.38,8.6]
[1765909272149,3.13352564,127.4,127.38,8.6]
[1765909272650,0.67,127.41,127.38,9.27]
[1765909273247,30.60228201,127.42,127.39,0.67]
[1765909273645,27.46875637,127.42,127.39,0.67]
[1765909274222,7.84744565,127.43,127.39,10.31335986]
[1765909274422,7.84744565,127.43,127.41,0.67]
[1765909274618,3.13352564,127.42,127.38,16.4502265]
[1765909274829,3.13352564,127.42,127.39,0.67]
[1765909275066,0.67,127.42,127.39,0.67]
[1765909275842,30.59958543,127.43,127.39,0.67]
[1765909276347,2.46352564,127.42,127.39,0.67]
[1765909277256,3.13352564,127.42,127.39,0.67]
[1765909277578,10.98206301,127.42,127.39,0.67]
[1765909277857,10.31206301,127.42,127.39,0.67]
[1765909278728,7.84853737,127.42,127.39,0.67]
[1765909278942,7.84853737,127.42,127.4,0.67]
[1765909279154,10.43767296,127.44,127.4,0.67]
[1765909279435,3.13352564,127.46,127.42,0.67]
[1765909279637,3.13352564,127.46,127.38,2.46352564]
[1765909279638,0.67,127.42,127.38,0.67]
[1765909279867,2.46352564,127.42,127.39,0.67]
[1765909280436,0.67,127.42,127.39,0.67]
[1765909280664,7.84774743,127.43,127.4,7.84926553]
[1765909280850,7.84774743,127.43,127.41,0.67]
[1765909281054,7.84713617,127.44,127.41,0.67]
[1765909281448,10.98066181,127.44,127.41,0.67]
[1765909283466,8.51713617,127.44,127.41,0.67]
[1765909284571,7.84713617,127.44,127.42,0.67]
[1765909285844,8.51713617,127.44,127.41,0.67]
[1765909286346,7.84713617,127.44,127.41,0.67]
[1765909286551,8.51713617,127.44,127.41,0.67]
[1765909287361,7.84713617,127.44,127.41,0.67]
[1765909288678,7.84713617,127.44,127.42,0.67]
[1765909290175,0.67,127.43,127.4,9.27]
[1765909290365,0.67,127.42,127.4,8.6]
[1765909290673,3.84852579,127.43,127.4,8.6]
[1765909290863,4.51852579,127.43,127.4,9.27]
[1765909291175,31.31273666,127.44,127.41,0.67]
[1765909291475,27.46421087,127.44,127.41,0.67]
[1765909292055,0.67,127.43,127.4,9.27]
[1765909293677,31.31273666,127.44,127.41,0.67]
[1765909293876,7.84713617,127.44,127.41,0.67]
[1765909296063,7.84713617,127.44,127.42,0.67]
[1765909297883,7.8462142,127.45,127.42,3.84852579]
[1765909298107,7.8462142,127.45,127.43,0.67]
[1765909298586,7.84590907,127.46,127.44,0.67]
[1765909298790,8.55590907,127.46,127.44,0.67]
[1765909299002,8.55590907,127.46,127.43,3.84852579]
[1765909299159,7.84590907,127.46,127.44,0.67]
[1765909300784,27.45990561,127.46,127.44,0.67]
[1765909301083,27.45990561,127.46,127.43,0.67]
[1765909302171,0.71,127.45,127.41,0.67]
[1765909302372,4.55852579,127.45,127.42,0.67]
[1765909302578,7.84682988,127.44,127.42,0.67]
[1765909304591,7.8462142,127.45,127.43,0.67]
[1765909307381,0.71,127.44,127.41,4.51820944]
[1765909307579,28.1717497,127.45,127.42,0.67]
[1765909308885,27.4617497,127.45,127.42,0.67]
[1765909309096,0.71,127.44,127.41,4.51820944]
[1765909309694,28.1717497,127.45,127.42,0.67]
[1765909310370,0.71,127.44,127.4,9.27]
[1765909310580,0.71,127.44,127.41,0.67]
[1765909310775,0.71,127.42,127.4,8.6]
[1765909311487,32.02426923,127.43,127.4,9.27]
[1765909312191,27.46605979,127.43,127.41,0.67]
[1765909312377,7.84744565,127.43,127.41,0.67]
[1765909314202,7.84744565,127.43,127.42,0.67]
[1765909314996,7.84682988,127.44,127.42,0.67]
[1765909316205,0.71,127.43,127.4,9.27]
[1765909316366,32.02211402,127.44,127.41,0.67]
[1765909316672,28.17390458,127.44,127.41,0.67]
[1765909316874,32.02211402,127.44,127.41,0.67]
[1765909317395,27.46390458,127.44,127.41,0.67]
[1765909317769,7.84682988,127.44,127.42,0.67]
[1765909317966,7.84646984,127.45,127.44,0.67]
[1765909318594,7.84646984,127.45,127.43,4.51820944]
[1765909318972,7.84589852,127.46,127.44,0.67]
[1765909319906,8.55589852,127.46,127.43,0.67]
[1765909321094,4.55820944,127.45,127.41,3.84820944]
[1765909321271,4.55820944,127.45,127.41,0.67]
[1765909321272,0.71,127.44,127.41,0.67]
[1765909321682,7.84744565,127.43,127.41,0.67]
[1765909322998,7.84744565,127.43,127.4,9.27]
[1765909323493,8.55744565,127.43,127.4,9.27]
[1765909323694,0.72,127.42,127.4,8.6]
[1765909324298,3.84820944,127.42,127.4,8.6]
[1765909324499,4.56820944,127.42,127.4,8.6]
[1765909325399,0.72,127.42,127.4,8.6]
[1765909325901,7.84867749,127.41,127.4,8.6]
[1765909326598,0.72,127.4,127.37,0.7]
[1765909326903,4.56820944,127.4,127.37,9.3]
[1765909327082,4.56820944,127.4,127.37,8.6]
[1765909327480,4.56820944,127.39,127.37,8.6]
[1765909327681,0.72,127.38,127.36,0.1]
[1765909327887,7.85114234,127.37,127.36,0.1]
[1765909328087,8.57114234,127.37,127.36,0.1]
[1765909330476,3.84820944,127.39,127.36,0.8]
[1765909330887,4.56820944,127.39,127.36,0.8]
[1765909331401,12.41811916,127.39,127.36,0.8]
[1765909332807,27.47468403,127.39,127.36,0.8]
[1765909332990,31.32289347,127.39,127.36,0.1]
[1765909333192,32.04289347,127.39,127.36,0.8]
[1765909333588,27.47468403,127.39,127.36,0.8]
[1765909333997,0.72,127.38,127.36,0.1]
[1765909334503,4.56820944,127.38,127.36,0.1]
[1765909335713,3.84820944,127.38,127.36,0.1]
[1765909335885,8.57114234,127.37,127.36,0.1]
[1765909336086,7.85114234,127.37,127.36,0.8]
[1765909336509,7.8506673,127.38,127.36,0.8]
[1765909339025,3.84820944,127.38,127.36,0.8]
[1765909339199,3.84820944,127.38,127.36,0.1]
[1765909339386,4.56820944,127.38,127.36,0.1]
[1765909339588,3.84820944,127.38,127.36,0.1]
[1765909339900,4.56820944,127.38,127.36,0.1]
[1765909340792,0.72,127.37,127.36,0.1]
[1765909340992,7.85114234,127.37,127.36,0.1]
[1765909341997,7.85114234,127.37,127.36,0.8]
[1765909342596,7.85114234,127.37,127.36,0.1]
[1765909342914,8.57114234,127.37,127.36,0.1]
[1765909343123,12.41935178,127.37,127.36,0.1]
[1765909344917,8.57114234,127.37,127.36,0.1]
[1765909345143,12.41935178,127.37,127.36,0.1]
[1765909349532,11.03780108,127.37,127.36,0.1]
[1765909350934,7.85114234,127.37,127.36,0.8]
[1765909351824,7.85114234,127.37,127.36,0.1]
[1765909352336,7.85073386,127.38,127.36,0.8]
[1765909352508,7.85007972,127.39,127.37,0.7]
[1765909353816,29.9391862,127.4,127.37,0.7]
[1765909354011,30.6191862,127.4,127.37,0.7]
[1765909354335,7.84929356,127.4,127.37,0.7]
[1765909355913,30.6391862,127.4,127.36,0.82]
[1765909356214,29.9391862,127.4,127.37,0.72]
[1765909357117,30.6391862,127.4,127.37,0.72]
[1765909358936,3.16665874,127.39,127.36,0.82]
[1765909360643,3.16665874,127.38,127.36,0.1]
[1765909360941,8.55114234,127.37,127.36,0.1]
[1765909361246,7.85114234,127.37,127.36,0.1]
[1765909365625,7.85114234,127.37,127.36,0.82]
[1765909367624,7.85052598,127.38,127.36,0.82]
[1765909369518,29.94226873,127.39,127.36,0.82]
[1765909371245,30.64226873,127.39,127.36,0.82]
[1765909371644,27.47560999,127.39,127.36,2.56665874]
[1765909371848,27.47560999,127.39,127.37,0.72]
[1765909372932,7.84990972,127.39,127.37,0.72]
[1765909374626,28.17290988,127.4,127.37,0.72]
[1765909375536,0.7,127.39,127.36,0.82]
[1765909376154,3.16502263,127.39,127.36,0.82]
[1765909377055,7.85052598,127.38,127.36,0.82]
[1765909377253,18.91960221,127.41,127.38,0.72]
[1765909377450,19.62084876,127.42,127.4,0.72]
[1765909378561,22.08587139,127.42,127.39,0.72]
[1765909378860,22.78587139,127.42,127.39,0.72]
[1765909379548,30.63393291,127.42,127.39,0.72]
[1765909380180,0.7,127.41,127.38,9.32]
[1765909380455,30.63393291,127.42,127.39,0.72]
[1765909382644,28.16891028,127.42,127.39,0.72]
[1765909382853,27.46891028,127.42,127.39,0.72]
[1765909383568,28.16891028,127.42,127.39,0.72]
[1765909384594,3.16502263,127.41,127.38,8.6]
[1765909384759,0.7,127.41,127.38,9.31]
[1765909385082,3.16502263,127.41,127.38,9.31]
[1765909385754,7.84929356,127.4,127.38,9.31]
[1765909388165,27.47252746,127.4,127.38,8.6]
[1765909388365,27.47252746,127.4,127.38,9.31]
[1765909388537,28.17252746,127.4,127.38,8.6]
[1765909388745,27.47252746,127.4,127.38,8.6]
[1765909388944,27.47252746,127.4,127.39,0.71]
[1765909389343,27.47252746,127.4,127.38,9.31]
[1765909389544,28.17252746,127.4,127.38,8.6]
[1765909391653,8.6,127.42,127.39,0.71]
[1765909391854,8.6,127.42,127.38,8.6]
[1765909391855,0.7,127.4,127.37,0.71]
[1765909392046,27.47082869,127.41,127.37,8.6]
[1765909392248,28.17082869,127.41,127.38,0.71]
[1765909392493,7.84913495,127.41,127.38,2.46502263]
[1765909392769,7.84825745,127.42,127.4,0.71]
[1765909395273,7.84744565,127.43,127.41,8.6]
[1765909395447,7.84744565,127.43,127.42,0.71]
[1765909398359,7.84682988,127.44,127.42,0.71]
[1765909399086,27.46390458,127.44,127.42,0.71]
[1765909400748,2.46502263,127.43,127.39,8.6]
[1765909400969,3.16502263,127.43,127.4,9.31]
[1765909402285,7.84806152,127.42,127.4,8.6]
[1765909402587,7.84806152,127.42,127.4,9.31]
[1765909403782,7.84806152,127.42,127.41,0.71]
[1765909403962,8.54806152,127.42,127.4,8.6]
[1765909404169,7.84806152,127.42,127.4,9.31]
[1765909407273,7.84806152,127.42,127.4,8.6]
[1765909407488,7.84806152,127.42,127.4,9.31]
[1765909415687,7.84806152,127.42,127.41,0.69]
[1765909416302,7.84806152,127.42,127.4,9.29]
[1765909416773,9.31,127.45,127.42,0.69]
[1765909416774,7.8462142,127.45,127.42,0.69]
[1765909416960,7.8462142,127.45,127.43,9.29]
[1765909417705,28.1217497,127.45,127.43,8.6]
[1765909418474,27.4617497,127.45,127.43,9.29]
[1765909418889,31.97128896,127.45,127.42,9.29]
[1765909419381,31.97128896,127.45,127.43,0.69]
[1765909419577,31.97128896,127.45,127.42,9.29]
[1765909420385,19.6155355,127.45,127.43,0.69]
[1765909420603,8.50559861,127.46,127.43,0.69]
[1765909420965,7.84508875,127.47,127.44,4.53953926]
[1765909421273,18.28230905,127.48,127.46,0.69]
[1765909422005,8.50463609,127.48,127.45,13.13953926]
[1765909422508,7.84463609,127.48,127.46,0.69]
[1765909422716,20.27013824,127.49,127.47,0.69]
[1765909422717,7.84404258,127.49,127.47,0.69]
[1765909423586,7.84313725,127.5,127.47,0.69]
[1765909423789,8.50313725,127.5,127.47,0.69]
[1765909424108,7.84313725,127.5,127.47,0.69]
[1765909424289,7.84313725,127.5,127.48,8.6]
[1765909424490,7.84313725,127.5,127.49,0.69]
[1765909425612,7.84313725,127.5,127.48,9.29]
[1765909427004,7.84313725,127.5,127.48,8.6]
[1765909427201,27.45098038,127.5,127.46,3.84953926]
[1765909427401,0.66,127.49,127.47,8.6]
[1765909427731,0.66,127.49,127.47,9.29]
[1765909427920,31.96051964,127.5,127.47,9.29]
[1765909428684,27.45098038,127.5,127.47,8.6]
[1765909428909,27.45098038,127.5,127.48,0.69]
[1765909429122,28.11098038,127.5,127.48,0.69]
[1765909429306,28.11098038,127.5,127.47,9.29]
[1765909430920,28.11098038,127.5,127.48,0.69]
[1765909431127,28.11098038,127.5,127.47,9.29]
[1765909432423,0.66,127.49,127.47,9.29]